[Event "Late-Titled-Tuesday-Blitz-May-28-2024"]
[Site "Chess.com"]
[Date "2024.05.28"]
[Round "5"]
[White "RuperezA"]
[Black "penguingm1"]
[Result "1-0"]
[WhiteElo "2716"]
[BlackElo "2933"]
[TimeControl "180+1"]
[EndTime "14:56:20 PDT"]
[Termination "RuperezA won by resignation"]

1. e4 {[%clk 0:02:49.4]} 1... e5 {[%clk 0:03:00]} 2. Nf3 {[%clk 0:02:47.7]} 2...
Nc6 {[%clk 0:03:00.5]} 3. Bc4 {[%clk 0:02:47.8]} 3... Nf6 {[%clk 0:02:58.5]} 4.
d3 {[%clk 0:02:48.2]} 4... h6 {[%clk 0:02:58.7]} 5. O-O {[%clk 0:02:47.7]} 5...
d6 {[%clk 0:02:59.4]} 6. d4 {[%clk 0:02:44.7]} 6... Bg4 {[%clk 0:02:41.4]} 7. c3
{[%clk 0:02:43.3]} 7... exd4 {[%clk 0:01:49.8]} 8. cxd4 {[%clk 0:02:37.1]} 8...
Bxf3 {[%clk 0:01:49.3]} 9. gxf3 {[%clk 0:02:35.1]} 9... d5 {[%clk 0:01:25.2]}
10. Bb5 {[%clk 0:02:16.7]} 10... Be7 {[%clk 0:01:08.5]} 11. e5 {[%clk 0:02:01]}
11... Nh5 {[%clk 0:00:55.9]} 12. f4 {[%clk 0:02:01]} 12... g6 {[%clk 0:00:55.6]}
13. f5 {[%clk 0:01:51.8]} 13... Qd7 {[%clk 0:00:53.1]} 14. f6 {[%clk 0:01:46.9]}
14... Bb4 {[%clk 0:00:51.8]} 15. Be2 {[%clk 0:01:43.3]} 15... Qf5 {[%clk
0:00:32.3]} 16. Be3 {[%clk 0:01:20.5]} 16... Nf4 {[%clk 0:00:28.2]} 17. Bg4
{[%clk 0:01:18.4]} 17... Qe4 {[%clk 0:00:15]} 18. Qf3 {[%clk 0:01:05.4]} 18...
g5 {[%clk 0:00:04.8]} 19. a3 {[%clk 0:00:58.4]} 19... Ba5 {[%clk 0:00:04.5]} 20.
Nc3 {[%clk 0:00:53.1]} 20... Bxc3 {[%clk 0:00:03.9]} 21. bxc3 {[%clk 0:00:54]}
21... h5 {[%clk 0:00:02.3]} 22. Qxe4 {[%clk 0:00:47.5]} 22... dxe4 {[%clk
0:00:03.2]} 23. Bf5 {[%clk 0:00:48.3]} 23... Ne2+ {[%clk 0:00:03.2]} 24. Kg2
{[%clk 0:00:42.7]} 24... Nxc3 {[%clk 0:00:04.1]} 25. Rac1 {[%clk 0:00:42.4]}
25... Ne2 {[%clk 0:00:01]} 26. Rxc6 {[%clk 0:00:19.3]} 26... bxc6 {[%clk
0:00:01]} 27. Bxe4 {[%clk 0:00:20.2]} 27... Rd8 {[%clk 0:00:01.4]} 28. Bxc6+
{[%clk 0:00:19.6]} 28... Kf8 {[%clk 0:00:01.7]} 29. Rd1 {[%clk 0:00:19.3]} 29...
h4 {[%clk 0:00:01.2]} 30. Kf3 {[%clk 0:00:16.8]} 30... Nc3 {[%clk 0:00:01.1]}
31. Rd3 {[%clk 0:00:16.6]} 31... Nd5 {[%clk 0:00:01.5]} 32. Ke4 {[%clk
0:00:16.3]} 32... Nxe3 {[%clk 0:00:02.1]} 33. Rxe3 {[%clk 0:00:15.1]} 33... g4
{[%clk 0:00:02.5]} 34. d5 {[%clk 0:00:14.7]} 34... Rg8 {[%clk 0:00:02.7]} 35. e6
{[%clk 0:00:13.6]} 35... fxe6 {[%clk 0:00:02.4]} 36. dxe6 {[%clk 0:00:14.5]}
36... Rd6 {[%clk 0:00:02.8]} 37. e7+ {[%clk 0:00:14]} 37... Kf7 {[%clk
0:00:03.4]} 38. Bd5+ {[%clk 0:00:14.2]} 38... Rxd5 {[%clk 0:00:03.8]} 39. Kxd5
{[%clk 0:00:15.1]} 39... Re8 {[%clk 0:00:01.4]} 40. Kc6 {[%clk 0:00:14.1]} 40...
Kxf6 {[%clk 0:00:01.6]} 41. Kd7 {[%clk 0:00:14.6]} 41... Kf7 {[%clk 0:00:01.4]}
42. Re4 {[%clk 0:00:14.2]} 42... g3 {[%clk 0:00:02.1]} 43. fxg3 {[%clk
0:00:13.1]} 43... hxg3 {[%clk 0:00:02.4]} 44. hxg3 {[%clk 0:00:14]} 44... Rb8
{[%clk 0:00:02.2]} 45. Rf4+ {[%clk 0:00:13.1]} 1-0

[Event "Late-Titled-Tuesday-Blitz-May-28-2024"]
[Site "Chess.com"]
[Date "2024.05.28"]
[Round "5"]
[White "Mikhail_Golubev"]
[Black "MeisterJabo"]
[Result "0-1"]
[WhiteElo "2639"]
[BlackElo "2499"]
[TimeControl "180+1"]
[EndTime "14:56:20 PDT"]
[Termination "MeisterJabo won on time"]

1. e4 {[%clk 0:03:00.9]} 1... e5 {[%clk 0:02:59.1]} 2. Nf3 {[%clk 0:03:00.7]}
2... Nf6 {[%clk 0:02:57.4]} 3. Nc3 {[%clk 0:02:58.2]} 3... Nc6 {[%clk
0:02:56.1]} 4. d4 {[%clk 0:02:58.2]} 4... exd4 {[%clk 0:02:55.5]} 5. Nxd4 {[%clk
0:02:59.1]} 5... Bb4 {[%clk 0:02:54.8]} 6. Nxc6 {[%clk 0:02:59.1]} 6... bxc6
{[%clk 0:02:55.7]} 7. Bd3 {[%clk 0:02:58.9]} 7... d5 {[%clk 0:02:47.2]} 8. exd5
{[%clk 0:02:57.3]} 8... O-O {[%clk 0:02:47.4]} 9. O-O {[%clk 0:02:56.8]} 9...
Bg4 {[%clk 0:02:47.4]} 10. Ne2 {[%clk 0:02:54.2]} 10... cxd5 {[%clk 0:02:46.5]}
11. f3 {[%clk 0:02:52.1]} 11... Bh5 {[%clk 0:02:45.7]} 12. Nf4 {[%clk
0:02:48.5]} 12... Bg6 {[%clk 0:02:43.3]} 13. Nxg6 {[%clk 0:02:48.5]} 13... hxg6
{[%clk 0:02:44.2]} 14. Be3 {[%clk 0:02:30.1]} 14... Qd6 {[%clk 0:02:42.1]} 15.
c3 {[%clk 0:02:07.4]} 15... Bc5 {[%clk 0:02:41.1]} 16. Qd2 {[%clk 0:01:56.8]}
16... Rfe8 {[%clk 0:02:38.8]} 17. Bxc5 {[%clk 0:01:47.1]} 17... Qxc5+ {[%clk
0:02:39.7]} 18. Qf2 {[%clk 0:01:46.7]} 18... Qb6 {[%clk 0:01:58.8]} 19. Qxb6
{[%clk 0:01:37]} 19... axb6 {[%clk 0:01:59.7]} 20. a3 {[%clk 0:01:37]} 20... Kf8
{[%clk 0:01:58]} 21. Rfe1 {[%clk 0:01:33]} 21... c6 {[%clk 0:01:55.5]} 22. Kf2
{[%clk 0:01:32.4]} 22... Nd7 {[%clk 0:01:56]} 23. Bf1 {[%clk 0:01:21]} 23... Nc5
{[%clk 0:01:52.4]} 24. Rad1 {[%clk 0:01:15.3]} 24... Re6 {[%clk 0:01:41.3]} 25.
c4 {[%clk 0:01:03.4]} 25... Rxe1 {[%clk 0:01:28.2]} 26. Kxe1 {[%clk 0:01:01.6]}
26... Re8+ {[%clk 0:01:24.6]} 27. Kf2 {[%clk 0:01:01]} 27... dxc4 {[%clk
0:01:21.4]} 28. Bxc4 {[%clk 0:00:59.8]} 28... Ke7 {[%clk 0:01:11.9]} 29. b4
{[%clk 0:00:50.9]} 29... Ne6 {[%clk 0:01:11.1]} 30. Bxe6 {[%clk 0:00:48.1]}
30... Kxe6 {[%clk 0:01:11.2]} 31. Re1+ {[%clk 0:00:45]} 31... Kd7 {[%clk
0:01:11.7]} 32. Rxe8 {[%clk 0:00:44.6]} 32... Kxe8 {[%clk 0:01:12.6]} 33. a4
{[%clk 0:00:38.9]} 33... Kd7 {[%clk 0:00:55.2]} 34. Ke3 {[%clk 0:00:39]} 34...
Kc7 {[%clk 0:00:47.1]} 35. Kd4 {[%clk 0:00:37]} 35... Kb7 {[%clk 0:00:47.4]} 36.
Ke5 {[%clk 0:00:29.4]} 36... Kc7 {[%clk 0:00:45.8]} 37. a5 {[%clk 0:00:20]}
37... f6+ {[%clk 0:00:46.1]} 38. Kd4 {[%clk 0:00:07.8]} 38... c5+ {[%clk
0:00:44.8]} 39. Kc4 {[%clk 0:00:07.6]} 39... cxb4 {[%clk 0:00:41.6]} 40. a6
{[%clk 0:00:07.5]} 40... Kb8 {[%clk 0:00:17.6]} 41. Kxb4 {[%clk 0:00:07.4]}
41... Ka7 {[%clk 0:00:18.5]} 42. Kb5 {[%clk 0:00:07]} 42... g5 {[%clk
0:00:18.5]} 43. g3 {[%clk 0:00:06.5]} 43... f5 {[%clk 0:00:18.8]} 44. h4 {[%clk
0:00:04.2]} 44... f4 {[%clk 0:00:15.8]} 0-1

[Event "Late-Titled-Tuesday-Blitz-May-28-2024"]
[Site "Chess.com"]
[Date "2024.05.28"]
[Round "5"]
[White "Abduzhaparov"]
[Black "ValeriyGrinev"]
[Result "1-0"]
[WhiteElo "2482"]
[BlackElo "2581"]
[TimeControl "180+1"]
[EndTime "14:56:21 PDT"]
[Termination "Abduzhaparov won by checkmate"]

1. Nf3 {[%clk 0:03:00.9]} 1... d5 {[%clk 0:02:59.4]} 2. c4 {[%clk 0:03:01.8]}
2... e6 {[%clk 0:02:59]} 3. g3 {[%clk 0:03:00.9]} 3... Nf6 {[%clk 0:02:59.1]} 4.
Bg2 {[%clk 0:03:00.7]} 4... Be7 {[%clk 0:02:59.3]} 5. d4 {[%clk 0:03:01]} 5...
O-O {[%clk 0:02:59.1]} 6. Qc2 {[%clk 0:03:01.4]} 6... c6 {[%clk 0:02:59.3]} 7.
O-O {[%clk 0:03:00.5]} 7... Nbd7 {[%clk 0:02:59.6]} 8. Rd1 {[%clk 0:03:00.2]}
8... b6 {[%clk 0:02:59.9]} 9. Bf4 {[%clk 0:02:58.4]} 9... Bb7 {[%clk 0:02:58.3]}
10. Nc3 {[%clk 0:02:57.5]} 10... Nh5 {[%clk 0:02:55.8]} 11. Bc1 {[%clk
0:02:55.8]} 11... Nhf6 {[%clk 0:02:55.4]} 12. Bf4 {[%clk 0:02:55.4]} 12... Rc8
{[%clk 0:02:52.5]} 13. e4 {[%clk 0:02:51.4]} 13... dxe4 {[%clk 0:02:50.8]} 14.
Nxe4 {[%clk 0:02:49.8]} 14... Nxe4 {[%clk 0:02:45.3]} 15. Qxe4 {[%clk
0:02:48.8]} 15... Nf6 {[%clk 0:02:45.5]} 16. Qe2 {[%clk 0:02:44.3]} 16... Nh5
{[%clk 0:02:25.8]} 17. Be3 {[%clk 0:02:37.4]} 17... Qc7 {[%clk 0:02:22.7]} 18.
Ne5 {[%clk 0:02:34]} 18... Nf6 {[%clk 0:02:22]} 19. Bf4 {[%clk 0:02:31]} 19...
Qd8 {[%clk 0:02:07.1]} 20. a3 {[%clk 0:02:22.2]} 20... Nd7 {[%clk 0:02:04.7]}
21. Nf3 {[%clk 0:01:43.4]} 21... Nf6 {[%clk 0:01:58.9]} 22. b4 {[%clk
0:01:42.8]} 22... h6 {[%clk 0:01:56.3]} 23. h4 {[%clk 0:01:41.4]} 23... Nh5
{[%clk 0:01:51.9]} 24. Be3 {[%clk 0:01:38.7]} 24... Qc7 {[%clk 0:01:50.4]} 25.
Ne5 {[%clk 0:01:38]} 25... Nf6 {[%clk 0:01:49.7]} 26. Bf4 {[%clk 0:01:37.9]}
26... Qd8 {[%clk 0:01:49.7]} 27. b5 {[%clk 0:01:32.4]} 27... Bd6 {[%clk
0:01:28.5]} 28. bxc6 {[%clk 0:01:26.1]} 28... Ba8 {[%clk 0:01:27.6]} 29. c5
{[%clk 0:01:16.1]} 29... Bxe5 {[%clk 0:01:02.9]} 30. dxe5 {[%clk 0:01:10.2]}
30... Nd5 {[%clk 0:01:02.5]} 31. Bxd5 {[%clk 0:01:05.9]} 31... exd5 {[%clk
0:01:03.4]} 32. e6 {[%clk 0:01:00.6]} 32... Qf6 {[%clk 0:00:37.2]} 33. cxb6
{[%clk 0:00:42.9]} 33... axb6 {[%clk 0:00:32.8]} 34. exf7+ {[%clk 0:00:36]}
34... Rxf7 {[%clk 0:00:28.5]} 35. c7 {[%clk 0:00:35.5]} 35... d4 {[%clk
0:00:21.3]} 36. Rac1 {[%clk 0:00:28.3]} 36... Qg6 {[%clk 0:00:16.1]} 37. Rxd4
{[%clk 0:00:18.7]} 37... Kh7 {[%clk 0:00:10.4]} 38. Qd3 {[%clk 0:00:16.7]} 38...
Rf5 {[%clk 0:00:07]} 39. Rd6 {[%clk 0:00:16.6]} 39... Qg4 {[%clk 0:00:05.5]} 40.
Rd8 {[%clk 0:00:13.5]} 40... Qh3 {[%clk 0:00:05.2]} 41. f3 {[%clk 0:00:10.3]}
41... g6 {[%clk 0:00:01.3]} 42. Qd7+ {[%clk 0:00:09.7]} 42... Rf7 {[%clk
0:00:00.8]} 43. Qxf7# {[%clk 0:00:09.6]} 1-0

[Event "Late-Titled-Tuesday-Blitz-May-28-2024"]
[Site "Chess.com"]
[Date "2024.05.28"]
[Round "5"]
[White "Sondremelaa"]
[Black "Balla_Tamas"]
[Result "0-1"]
[WhiteElo "2566"]
[BlackElo "2459"]
[TimeControl "180+1"]
[EndTime "14:56:21 PDT"]
[Termination "Balla_Tamas won on time"]

1. e4 {[%clk 0:03:00.9]} 1... c5 {[%clk 0:02:59.5]} 2. Nf3 {[%clk 0:03:00.5]}
2... Nc6 {[%clk 0:02:59.4]} 3. d4 {[%clk 0:03:01]} 3... cxd4 {[%clk 0:03:00.3]}
4. Nxd4 {[%clk 0:03:01.5]} 4... e5 {[%clk 0:03:01]} 5. Nb5 {[%clk 0:02:59.8]}
5... d6 {[%clk 0:03:01.3]} 6. N1c3 {[%clk 0:02:53.9]} 6... a6 {[%clk 0:03:01.1]}
7. Na3 {[%clk 0:02:53.4]} 7... b5 {[%clk 0:03:01.8]} 8. Nd5 {[%clk 0:02:51.1]}
8... Nge7 {[%clk 0:03:01.8]} 9. c4 {[%clk 0:02:50.1]} 9... Nxd5 {[%clk
0:03:01.9]} 10. exd5 {[%clk 0:02:48.9]} 10... Nd4 {[%clk 0:03:02.1]} 11. cxb5
{[%clk 0:02:41]} 11... Bd7 {[%clk 0:03:02.1]} 12. Bd3 {[%clk 0:02:28.8]} 12...
Be7 {[%clk 0:02:58]} 13. O-O {[%clk 0:02:28.1]} 13... Nxb5 {[%clk 0:02:57.4]}
14. Nc4 {[%clk 0:02:20.3]} 14... O-O {[%clk 0:02:55.1]} 15. Be3 {[%clk
0:02:17.5]} 15... Bg5 {[%clk 0:02:53.6]} 16. a4 {[%clk 0:02:10.5]} 16... Bxe3
{[%clk 0:02:45.8]} 17. fxe3 {[%clk 0:02:09.4]} 17... Nc7 {[%clk 0:02:37.1]} 18.
Nxd6 {[%clk 0:02:06.1]} 18... Qg5 {[%clk 0:02:23.3]} 19. e4 {[%clk 0:01:59.6]}
19... Rad8 {[%clk 0:01:51.1]} 20. Rc1 {[%clk 0:01:54.7]} 20... Bg4 {[%clk
0:01:39.4]} 21. Qe1 {[%clk 0:01:40.2]} 21... Nxd5 {[%clk 0:01:29.3]} 22. Nxf7
{[%clk 0:01:35.9]} 22... Rxf7 {[%clk 0:00:57]} 23. Rxf7 {[%clk 0:01:08.1]} 23...
Ne3 {[%clk 0:00:46.5]} 24. Rb7 {[%clk 0:00:28.8]} 24... Bc8 {[%clk 0:00:38.2]}
25. Bc4+ {[%clk 0:00:23.7]} 25... Kh8 {[%clk 0:00:37.1]} 26. Rxg7 {[%clk
0:00:12]} 26... Kxg7 {[%clk 0:00:33.4]} 27. g3 {[%clk 0:00:11.4]} 27... Ng4
{[%clk 0:00:22.6]} 28. Be2 {[%clk 0:00:09]} 28... Qe3+ {[%clk 0:00:21.9]} 29.
Kg2 {[%clk 0:00:09.6]} 29... Qxe4+ {[%clk 0:00:15.6]} 30. Bf3 {[%clk 0:00:09.6]}
30... Qxe1 {[%clk 0:00:14.8]} 31. Rxe1 {[%clk 0:00:10.5]} 31... Rd2+ {[%clk
0:00:15]} 32. Re2 {[%clk 0:00:10.2]} 32... Rxe2+ {[%clk 0:00:14.7]} 33. Bxe2
{[%clk 0:00:11.1]} 33... Bb7+ {[%clk 0:00:14.5]} 34. Kg1 {[%clk 0:00:10.1]}
34... Ne3 {[%clk 0:00:13]} 35. Kf2 {[%clk 0:00:09.8]} 35... Nd5 {[%clk
0:00:13.1]} 36. Bc4 {[%clk 0:00:04.7]} 36... Kf6 {[%clk 0:00:13.1]} 37. Ke2
{[%clk 0:00:04.1]} 37... Ne7 {[%clk 0:00:11.4]} 38. Ke3 {[%clk 0:00:04]} 38...
Nc6 {[%clk 0:00:11.6]} 39. Bd5 {[%clk 0:00:02.6]} 39... Ke7 {[%clk 0:00:10.7]}
40. Ke4 {[%clk 0:00:02.2]} 40... Kd6 {[%clk 0:00:11.2]} 41. Bb3 {[%clk
0:00:01.8]} 41... Na5+ {[%clk 0:00:11.2]} 0-1

[Event "Late-Titled-Tuesday-Blitz-May-28-2024"]
[Site "Chess.com"]
[Date "2024.05.28"]
[Round "5"]
[White "brunoo2003"]
[Black "Onthequiet"]
[Result "1-0"]
[WhiteElo "2580"]
[BlackElo "2443"]
[TimeControl "180+1"]
[EndTime "14:56:21 PDT"]
[Termination "brunoo2003 won by resignation"]

1. c4 {[%clk 0:02:54.3]} 1... e6 {[%clk 0:02:59.7]} 2. Nf3 {[%clk 0:02:53.5]}
2... d5 {[%clk 0:03:00.6]} 3. d4 {[%clk 0:02:53.4]} 3... Nf6 {[%clk 0:03:00.5]}
4. g3 {[%clk 0:02:53.8]} 4... Bb4+ {[%clk 0:03:00.5]} 5. Nc3 {[%clk 0:02:52.9]}
5... O-O {[%clk 0:03:00.4]} 6. Bg2 {[%clk 0:02:53.5]} 6... Nbd7 {[%clk 0:03:00]}
7. O-O {[%clk 0:02:54]} 7... c6 {[%clk 0:02:58.8]} 8. Qb3 {[%clk 0:02:53.2]}
8... Be7 {[%clk 0:02:56.8]} 9. Bf4 {[%clk 0:02:52]} 9... b6 {[%clk 0:02:56.3]}
10. Rac1 {[%clk 0:02:50.5]} 10... Ba6 {[%clk 0:02:56.2]} 11. cxd5 {[%clk
0:02:49.3]} 11... exd5 {[%clk 0:02:56.8]} 12. Qa4 {[%clk 0:02:48.4]} 12... Bb7
{[%clk 0:02:55]} 13. Rfe1 {[%clk 0:02:42.1]} 13... b5 {[%clk 0:02:52.5]} 14. Qc2
{[%clk 0:02:40.8]} 14... Bb4 {[%clk 0:02:46.2]} 15. a3 {[%clk 0:02:37.9]} 15...
Ba5 {[%clk 0:02:46]} 16. b4 {[%clk 0:02:34.8]} 16... Bb6 {[%clk 0:02:45.6]} 17.
a4 {[%clk 0:02:21.6]} 17... a6 {[%clk 0:02:04.1]} 18. a5 {[%clk 0:02:19.7]}
18... Bc7 {[%clk 0:01:59.6]} 19. Bxc7 {[%clk 0:02:01.6]} 19... Qxc7 {[%clk
0:01:58.6]} 20. Nd2 {[%clk 0:02:00.9]} 20... Qd6 {[%clk 0:01:47.6]} 21. Qb2
{[%clk 0:01:59.9]} 21... h5 {[%clk 0:01:28.6]} 22. e4 {[%clk 0:01:42.6]} 22...
Ng4 {[%clk 0:01:28.3]} 23. h3 {[%clk 0:01:36.6]} 23... Nh6 {[%clk 0:01:25.9]}
24. Nb3 {[%clk 0:01:16.4]} 24... Rae8 {[%clk 0:01:18.4]} 25. Nc5 {[%clk
0:01:13.5]} 25... Nxc5 {[%clk 0:01:17.7]} 26. dxc5 {[%clk 0:01:11.6]} 26... Qf6
{[%clk 0:01:05.3]} 27. exd5 {[%clk 0:01:11.1]} 27... cxd5 {[%clk 0:01:06.2]} 28.
Qd2 {[%clk 0:01:07]} 28... d4 {[%clk 0:01:04.3]} 29. Rxe8 {[%clk 0:01:01]} 29...
Rxe8 {[%clk 0:01:02.8]} 30. Bxb7 {[%clk 0:00:58.5]} 30... dxc3 {[%clk
0:01:03.7]} 31. Qxc3 {[%clk 0:00:58.6]} 31... Qg5 {[%clk 0:00:33.2]} 32. c6
{[%clk 0:00:52]} 32... h4 {[%clk 0:00:33.2]} 33. c7 {[%clk 0:00:24.1]} 33...
hxg3 {[%clk 0:00:32.5]} 34. fxg3 {[%clk 0:00:22.9]} 34... Re3 {[%clk 0:00:25.2]}
35. c8=Q+ {[%clk 0:00:22.7]} 35... Kh7 {[%clk 0:00:25.9]} 36. Q8c7 {[%clk
0:00:18.3]} 36... Nf5 {[%clk 0:00:21.7]} 37. Qf4 {[%clk 0:00:14.8]} 37... Rxc3
{[%clk 0:00:11.2]} 38. Qxg5 {[%clk 0:00:13.9]} 38... Rxg3+ {[%clk 0:00:12.1]}
39. Qxg3 {[%clk 0:00:13.6]} 39... Nxg3 {[%clk 0:00:13]} 40. Kg2 {[%clk
0:00:13.8]} 40... Ne2 {[%clk 0:00:13.1]} 41. Be4+ {[%clk 0:00:13.5]} 41... Kh6
{[%clk 0:00:12.9]} 42. Rc6+ {[%clk 0:00:14]} 42... g6 {[%clk 0:00:12.9]} 43.
Rxa6 {[%clk 0:00:14.9]} 43... f5 {[%clk 0:00:13]} 44. Bf3 {[%clk 0:00:14.6]}
44... Nd4 {[%clk 0:00:13.1]} 45. Rd6 {[%clk 0:00:13.2]} 45... Nc2 {[%clk
0:00:12.8]} 46. a6 {[%clk 0:00:13]} 46... Nxb4 {[%clk 0:00:13.3]} 47. a7 {[%clk
0:00:13.6]} 1-0

[Event "Late-Titled-Tuesday-Blitz-May-28-2024"]
[Site "Chess.com"]
[Date "2024.05.28"]
[Round "5"]
[White "Kiborg95"]
[Black "MKlose11"]
[Result "1-0"]
[WhiteElo "2811"]
[BlackElo "2606"]
[TimeControl "180+1"]
[EndTime "14:56:23 PDT"]
[Termination "Kiborg95 won on time"]

1. e4 {[%clk 0:03:00.9]} 1... e6 {[%clk 0:02:54.1]} 2. d3 {[%clk 0:03:00.5]}
2... d5 {[%clk 0:02:52.6]} 3. Nd2 {[%clk 0:03:01.2]} 3... Be7 {[%clk 0:02:52.4]}
4. g3 {[%clk 0:02:59.2]} 4... Nf6 {[%clk 0:02:52.7]} 5. e5 {[%clk 0:02:59.5]}
5... Nfd7 {[%clk 0:02:52.3]} 6. f4 {[%clk 0:03:00.2]} 6... f6 {[%clk 0:02:47.6]}
7. exf6 {[%clk 0:02:59.8]} 7... Bxf6 {[%clk 0:02:47.8]} 8. Ndf3 {[%clk
0:02:54.3]} 8... O-O {[%clk 0:02:43.3]} 9. d4 {[%clk 0:02:35.2]} 9... c5 {[%clk
0:02:42.4]} 10. c3 {[%clk 0:02:34.5]} 10... Nc6 {[%clk 0:02:42.3]} 11. Bd3
{[%clk 0:02:34.4]} 11... cxd4 {[%clk 0:02:41.3]} 12. cxd4 {[%clk 0:02:35.3]}
12... Qb6 {[%clk 0:02:02.2]} 13. Ne2 {[%clk 0:02:34.6]} 13... Kh8 {[%clk
0:02:02.6]} 14. Bb1 {[%clk 0:02:27.2]} 14... g6 {[%clk 0:01:41.9]} 15. a3 {[%clk
0:02:19.9]} 15... Na5 {[%clk 0:01:39.2]} 16. b4 {[%clk 0:02:15.3]} 16... Nc4
{[%clk 0:01:38.2]} 17. h4 {[%clk 0:02:14.8]} 17... a5 {[%clk 0:01:32.3]} 18. h5
{[%clk 0:02:14.1]} 18... g5 {[%clk 0:01:25.1]} 19. Qd3 {[%clk 0:01:57.2]} 19...
Rf7 {[%clk 0:01:23.4]} 20. fxg5 {[%clk 0:01:54.3]} 20... Be7 {[%clk 0:01:20.3]}
21. g6 {[%clk 0:01:49.1]} 21... Rxf3 {[%clk 0:00:53]} 22. g7+ {[%clk 0:01:09.8]}
22... Kxg7 {[%clk 0:00:52.6]} 23. Qxh7+ {[%clk 0:01:10.5]} 23... Kf8 {[%clk
0:00:53]} 24. Bg6 {[%clk 0:01:10.5]} 24... Bxb4+ {[%clk 0:00:41.6]} 25. Kd1
{[%clk 0:01:03.2]} 25... Nb2+ {[%clk 0:00:19.2]} 26. Kc2 {[%clk 0:01:02.8]}
26... Bd2 {[%clk 0:00:14.8]} 27. Bxd2 {[%clk 0:00:48.9]} 27... Qb3+ {[%clk
0:00:13]} 28. Kc1 {[%clk 0:00:48]} 28... Nd3+ {[%clk 0:00:08.8]} 29. Bxd3 {[%clk
0:00:46.2]} 29... Nf6 {[%clk 0:00:08.6]} 30. Qh8+ {[%clk 0:00:20.6]} 30... Ke7
{[%clk 0:00:08.6]} 31. Qg7+ {[%clk 0:00:19.1]} 31... Kd8 {[%clk 0:00:08.8]} 32.
Bc2 {[%clk 0:00:17.3]} 32... Qc4 {[%clk 0:00:06]} 33. Bg5 {[%clk 0:00:15.1]}
33... Bd7 {[%clk 0:00:06.3]} 34. Bxf6+ {[%clk 0:00:14.5]} 34... Kc7 {[%clk
0:00:06.2]} 35. Be5+ {[%clk 0:00:15.1]} 35... Kc6 {[%clk 0:00:06]} 36. Qe7
{[%clk 0:00:14.6]} 36... Kb6 {[%clk 0:00:04.2]} 37. Rb1+ {[%clk 0:00:13.1]}
37... Bb5 {[%clk 0:00:02.7]} 38. a4 {[%clk 0:00:13.3]} 38... Qxc2+ {[%clk
0:00:00.9]} 39. Kxc2 {[%clk 0:00:13.1]} 39... Rc8+ {[%clk 0:00:01.8]} 40. Kd2
{[%clk 0:00:12.1]} 40... Rd3+ {[%clk 0:00:01.9]} 41. Ke1 {[%clk 0:00:12.8]} 1-0

[Event "Late-Titled-Tuesday-Blitz-May-28-2024"]
[Site "Chess.com"]
[Date "2024.05.28"]
[Round "5"]
[White "Maus7"]
[Black "BardArtem"]
[Result "0-1"]
[WhiteElo "2569"]
[BlackElo "2796"]
[TimeControl "180+1"]
[EndTime "14:56:28 PDT"]
[Termination "BardArtem won on time"]

1. e4 {[%clk 0:03:00.9]} 1... e5 {[%clk 0:02:58]} 2. Nf3 {[%clk 0:03:00.7]} 2...
Nc6 {[%clk 0:02:57.7]} 3. Bb5 {[%clk 0:03:00.6]} 3... Nge7 {[%clk 0:02:57.4]} 4.
c3 {[%clk 0:02:48.7]} 4... d5 {[%clk 0:02:55.8]} 5. d4 {[%clk 0:01:52]} 5...
dxe4 {[%clk 0:02:54.2]} 6. Nxe5 {[%clk 0:01:50.6]} 6... a6 {[%clk 0:02:41.3]} 7.
Ba4 {[%clk 0:01:46.1]} 7... b5 {[%clk 0:02:34.8]} 8. Nxc6 {[%clk 0:01:44.4]}
8... Nxc6 {[%clk 0:02:35.7]} 9. Bc2 {[%clk 0:01:35.1]} 9... f5 {[%clk
0:02:28.8]} 10. O-O {[%clk 0:01:33.3]} 10... Bd6 {[%clk 0:02:28.1]} 11. a4
{[%clk 0:01:23.2]} 11... b4 {[%clk 0:02:22.5]} 12. Qh5+ {[%clk 0:01:18.3]} 12...
g6 {[%clk 0:02:18.2]} 13. Qh6 {[%clk 0:01:18.4]} 13... bxc3 {[%clk 0:02:11.8]}
14. bxc3 {[%clk 0:01:17.5]} 14... Qf6 {[%clk 0:02:00.6]} 15. f3 {[%clk
0:01:06.4]} 15... exf3 {[%clk 0:01:49.2]} 16. Rxf3 {[%clk 0:01:03.6]} 16... Be6
{[%clk 0:01:42.5]} 17. Bg5 {[%clk 0:00:58.3]} 17... Qf8 {[%clk 0:01:36.8]} 18.
Qh3 {[%clk 0:00:45.8]} 18... h6 {[%clk 0:01:31.6]} 19. Bf4 {[%clk 0:00:40.9]}
19... Bxf4 {[%clk 0:01:29.3]} 20. Rxf4 {[%clk 0:00:41.8]} 20... Qd6 {[%clk
0:01:29.5]} 21. Rf2 {[%clk 0:00:28.9]} 21... h5 {[%clk 0:01:06.8]} 22. Nd2
{[%clk 0:00:27.3]} 22... O-O {[%clk 0:01:07.3]} 23. Nf3 {[%clk 0:00:26]} 23...
Bd5 {[%clk 0:01:04.4]} 24. Re1 {[%clk 0:00:21.4]} 24... Rfe8 {[%clk 0:01:03.6]}
25. Rfe2 {[%clk 0:00:19.1]} 25... Rxe2 {[%clk 0:01:01.5]} 26. Rxe2 {[%clk
0:00:20]} 26... Qf4 {[%clk 0:00:59.9]} 27. Qh4 {[%clk 0:00:15.4]} 27... Qxh4
{[%clk 0:00:55.3]} 28. Nxh4 {[%clk 0:00:16.3]} 28... Kf7 {[%clk 0:00:52.3]} 29.
Bd3 {[%clk 0:00:16]} 29... Kf6 {[%clk 0:00:48.3]} 30. c4 {[%clk 0:00:15.3]}
30... Nxd4 {[%clk 0:00:48.8]} 31. cxd5 {[%clk 0:00:12.5]} 31... Nxe2+ {[%clk
0:00:48.8]} 32. Bxe2 {[%clk 0:00:13.4]} 32... g5 {[%clk 0:00:24]} 33. Nf3 {[%clk
0:00:12.3]} 33... g4 {[%clk 0:00:24.7]} 34. Nd4 {[%clk 0:00:12.2]} 34... Ke5
{[%clk 0:00:25.3]} 35. Nc6+ {[%clk 0:00:12.6]} 35... Kxd5 {[%clk 0:00:23.3]} 36.
Nb4+ {[%clk 0:00:12.8]} 36... Kd4 {[%clk 0:00:20.6]} 37. Nxa6 {[%clk 0:00:10.7]}
37... c5 {[%clk 0:00:19.3]} 38. Bb5 {[%clk 0:00:10.1]} 38... c4 {[%clk 0:00:18]}
39. Nc7 {[%clk 0:00:09.9]} 39... c3 {[%clk 0:00:17.3]} 40. Ne6+ {[%clk
0:00:09.3]} 40... Ke3 {[%clk 0:00:16.4]} 41. Nc5 {[%clk 0:00:08.2]} 41... c2
{[%clk 0:00:14.2]} 42. Nb3 {[%clk 0:00:08]} 42... Rd8 {[%clk 0:00:11.4]} 43. g3
{[%clk 0:00:06.2]} 43... Rd1+ {[%clk 0:00:12]} 44. Kg2 {[%clk 0:00:06.1]} 44...
Rb1 {[%clk 0:00:12.7]} 0-1